bitfinex/quotes_ETHUSD_20240713
["timestamp","ask_amount","ask_price","bid_price","bid_amount"]
[1720863267665,2.21247,3163.9,3163.2,6.91330018]
[1720863267868,2.21254,3163.8,3163.2,6.91330018]
[1720863269189,2.21253,3163.8,3163.2,6.91330018]
[1720863269563,2.21267,3163.6,3163.2,6.91330018]
[1720863269864,2.65519,3163.6,3163.2,6.91330018]
[1720863270268,2.21267,3163.6,3163.2,6.91330018]
[1720863271188,2.21275,3163.5,3163.2,6.91330018]
[1720863271878,2.21282,3163.4,3163.2,6.91330018]
[1720863272875,2.21282,3163.4,3162.6,2.2133]
[1720863274279,2.21295,3163.2,3162.4,9.12678018]
[1720863274584,2.21295,3163.2,3162.5,2.21342]
[1720863275499,2.21295,3163.2,3162.4,6.91330018]
[1720863275736,2.21302,3163.1,3162.4,9.12680018]
[1720863276240,2.21302,3163.1,3162.4,6.91330018]
[1720863276513,2.21319,3162.9,3162.4,6.91330018]
[1720863277404,2.21319,3162.9,3162.1,2.21366]
[1720863278319,2.21319,3162.9,3162.2,2.21363]
[1720863278610,2.21309,3163.0,3162.2,2.21363]
[1720863278817,2.21316,3162.9,3162.2,2.21363]
[1720863279399,2.21309,3163.0,3162.2,2.21363]
[1720863279785,2.21315,3162.9,3162.2,2.21363]
[1720863282995,2.21323,3162.8,3162.2,2.21363]
[1720863283201,2.21323,3162.8,3162.1,2.21367]
[1720863283402,2.21323,3162.8,3162.1,4.42732]
[1720863283722,2.21323,3162.8,3162.2,2.21363]
[1720863283929,2.21323,3162.8,3162.0,9.12703018]
[1720863284132,2.21323,3162.8,3162.1,2.21371]
[1720863285901,2.21333,3162.7,3162.1,2.21371]
[1720863287197,2.21333,3162.7,3162.0,6.91330018]
[1720863287536,2.21333,3162.7,3162.0,9.12707018]
[1720863287889,1.917,3163.0,3162.0,9.12707018]
[1720863287890,2.21356,3162.4,3162.0,6.91330018]
[1720863288095,2.21359,3162.3,3162.0,6.91330018]
[1720863288823,2.21366,3162.2,3162.0,6.91330018]
[1720863289030,2.656382,3162.2,3162.0,6.91330018]
[1720863289273,2.656382,3162.2,3161.9,0.0083723]
[1720863289451,4.42756,3162.0,3161.9,0.0083723]
[1720863292075,4.573422,3162.2,3161.9,0.0083723]
[1720863292287,2.21378,3162.0,3161.9,0.0083723]
[1720863292671,3.1925022,3162.0,3161.9,0.0083723]
[1720863294983,5.4062822,3162.0,3161.9,0.0083723]
[1720863297685,3.1925022,3162.0,3161.9,0.0083723]
[1720863298486,3.27157739,3162.0,3161.9,0.0083723]
[1720863298644,5.48535739,3162.0,3161.9,0.0083723]
[1720863298846,5.4062822,3162.0,3161.9,0.0083723]
[1720863300759,3.1925022,3162.0,3161.9,0.0083723]
[1720863300963,5.4062822,3162.0,3161.9,0.0083723]
[1720863301168,5.48536033,3162.0,3161.9,0.0083723]
[1720863301766,7.7291822,3162.0,3161.9,0.0083723]
[1720863301970,10.7291822,3162.0,3161.9,0.0083723]
[1720863304990,0.33131766,3162.6,3161.9,0.0083723]
[1720863305160,2.21252,3163.9,3162.0,2.4146]
[1720863305360,0.33124137,3163.7,3162.5,2.21337]
[1720863305564,2.21246,3163.9,3162.1,0.61323143]
[1720863305565,2.21246,3163.9,3162.1,0.55]
[1720863305792,2.21272,3163.6,3162.1,0.55]
[1720863305949,2.21272,3163.6,3162.1,3.55]
[1720863306158,2.21272,3163.6,3162.7,2.21328]
[1720863307860,2.21281,3163.4,3162.1,5.76365]
[1720863308064,2.21281,3163.4,3162.5,2.21342]
[1720863308686,2.21281,3163.4,3162.5,2.2134]
[1720863309353,2.21281,3163.4,3162.1,5.21365]
[1720863309354,2.21297,3163.2,3162.2,2.21363]
[1720863310382,2.21303,3163.1,3162.2,2.21363]
[1720863311074,2.669893,3163.1,3162.2,2.21363]
[1720863314020,2.21309,3163.0,3162.2,2.21363]
[1720863315797,2.21324,3162.8,3162.0,2.21378]
[1720863315994,2.21331,3162.7,3161.9,0.0083723]
[1720863316398,2.21331,3162.7,3161.9,2.2222023]
[1720863316717,2.21331,3162.7,3161.9,0.0083723]
[1720863316718,0.0790578,3162.6,3161.9,0.0083723]
[1720863316917,2.21344,3162.5,3161.9,0.0083723]
[1720863317484,2.29250231,3162.5,3161.9,0.0083723]
[1720863317883,2.21364,3162.3,3161.9,0.0083723]
[1720863318589,2.21337,3162.6,3161.9,0.0083723]
[1720863319336,2.21344,3162.5,3161.9,0.0083723]
[1720863319859,0.456895,3162.6,3161.9,0.0083723]
[1720863319860,2.21369,3162.2,3161.9,0.0083723]
[1720863321020,2.21378,3162.0,3161.9,0.0083723]
[1720863325737,4.50663907,3162.0,3161.9,0.0083723]
[1720863325961,6.79522391,3162.0,3161.9,0.0083723]
[1720863326186,12.25252391,3162.0,3161.9,0.0083723]
[1720863328243,2.21458,3160.9,3160.5,6.91330018]
[1720863331677,0.08087995,3160.8,3160.5,6.91330018]
[1720863332272,0.08087995,3160.8,3160.7,4.42938]
[1720863332462,2.21403,3161.7,3161.0,2.21444]
[1720863332780,2.21403,3161.7,3160.8,2.21458]
[1720863332955,4.20962143,3162.4,3160.6,4.56624]
[1720863332956,2.21426,3161.4,3160.6,4.56624]
[1720863333157,2.21426,3161.4,3160.6,2.21474]
[1720863333361,0.07773078,3161.3,3160.6,2.21474]
[1720863333572,2.21436,3161.2,3160.5,6.91330018]
[1720863333780,2.21443,3161.1,3160.5,6.91330018]
[1720863334110,2.21449,3161.0,3160.5,6.91330018]
[1720863334380,2.21456,3160.9,3160.5,6.91330018]
[1720863334682,0.07762677,3160.8,3160.5,9.12813018]
[1720863334896,2.2143,3161.3,3160.6,2.21472]
[1720863335049,0.0776261,3160.7,3160.6,2.21472]
[1720863335385,2.2143,3161.3,3160.6,2.21472]
[1720863335768,2.21444,3161.1,3160.1,2.3515]
[1720863335970,2.21444,3161.1,3160.2,2.21503]
[1720863336284,2.29222312,3161.0,3160.4,2.2149]
[1720863336780,0.07769312,3161.0,3160.5,2.2148]
[1720863336989,0.07769312,3161.0,3160.6,2.27803473]
[1720863337150,2.21421,3161.4,3160.6,2.21476]
[1720863337557,2.29199169,3161.3,3160.6,2.21476]
[1720863337759,2.21434,3161.2,3160.4,2.2149]
[1720863338169,2.2920682,3161.1,3160.4,2.2149]
[1720863338375,2.21458,3160.9,3160.3,6.91330018]
[1720863338760,0.07754942,3160.8,3160.3,6.91330018]
[1720863339329,2.21472,3160.7,3160.3,6.91330018]
[1720863339982,0.07746593,3160.6,3160.3,6.91330018]
[1720863341262,2.29223593,3160.6,3159.8,2.21528]
[1720863341488,2.29223593,3160.6,3159.9,2.21525]
[1720863341896,2.21484,3160.5,3159.6,11.48024018]
[1720863342110,2.29200823,3160.5,3159.6,11.48024018]
[1720863342311,4.50690823,3160.5,3159.8,2.21532]
[1720863343104,2.21494,3160.4,3159.6,11.48024018]
[1720863343265,2.29197206,3160.4,3159.6,11.48024018]
[1720863343466,0.07703206,3160.4,3159.6,11.48024018]
[1720863343707,2.21486,3160.5,3159.8,2.21531]
[1720863343904,0.07713806,3160.3,3159.8,2.21531]
[1720863344076,2.21486,3160.5,3159.8,2.21531]
[1720863344280,0.07712827,3160.2,3159.8,2.21531]
[1720863344496,2.21473,3160.7,3160.0,2.21514]
[1720863344716,0.07705805,3160.1,3160.0,2.21514]
[1720863345039,2.21478,3160.6,3160.0,2.21514]
[1720863345161,2.21473,3160.7,3159.8,2.21531]
[1720863345370,2.21491,3160.4,3159.6,6.91330018]
[1720863345603,2.21491,3160.4,3159.7,2.21539]
[1720863345807,0.07701286,3160.3,3159.7,2.21539]
[1720863347515,2.29199286,3160.3,3159.5,2.21547]
[1720863347979,2.29199286,3160.3,3159.6,2.21546]
[1720863348187,2.72125235,3160.3,3159.6,2.21546]
[1720863348370,2.72125235,3160.3,3159.6,4.43087]
[1720863348371,2.29199286,3160.3,3159.6,4.43087]
[1720863348567,2.29199286,3160.3,3159.6,2.21541]
[1720863349703,4.50703286,3160.3,3159.6,2.21541]
[1720863350015,2.29199286,3160.3,3159.4,2.21555]
[1720863350164,2.21516,3160.1,3159.4,2.21555]
[1720863350609,0.07680731,3160.0,3159.4,2.21555]
[1720863350781,2.21541,3159.7,3158.7,9.24481188]
[1720863351113,2.21541,3159.7,3159.0,2.21588]
[1720863351405,2.21541,3159.7,3158.9,2.21589]
[1720863351406,0.07667641,3159.6,3158.9,2.21589]
[1720863351704,0.07667641,3159.6,3159.0,2.21588]
[1720863353812,2.29219641,3159.6,3158.8,2.21598]
[1720863353993,2.21555,3159.5,3158.8,2.21598]
[1720863354596,0.07665471,3159.4,3158.7,0.1154617]
[1720863354796,2.2157,3159.3,3158.7,0.1154617]
[1720863355178,2.21585,3159.1,3158.7,0.1154617]
[1720863355579,0.07652284,3159.0,3158.7,0.1154617]
[1720863356408,2.29244284,3159.0,3158.7,0.1154617]
[1720863357601,2.37159632,3159.0,3158.7,0.1154617]
[1720863357783,0.45874463,3158.9,3158.7,0.1154617]
[1720863358174,0.07620709,3158.8,3158.7,0.1154617]
[1720863359179,0.15536349,3158.8,3158.7,0.1154617]
[1720863359499,0.07620709,3158.8,3158.7,0.1154617]
[1720863360102,2.2646,3159.7,3158.7,2.39488466]
[1720863360304,2.2646,3160.1,3158.8,0.06331026]
[1720863360505,2.21506,3160.2,3159.5,2.21553]
[1720863361009,2.21494,3160.4,3159.3,2.21567]
[1720863361227,1.917,3160.5,3159.8,2.21532]
[1720863361418,2.2646,3160.7,3159.8,2.21532]
[1720863361615,2.2646,3160.7,3159.1,4.66728]
[1720863361616,2.21478,3160.6,3159.1,4.66728]
[1720863361916,2.21478,3160.6,3159.7,2.21534]
[1720863362414,3.125681,3160.7,3159.8,2.21531]
[1720863362615,5.340441,3160.7,3159.8,2.21531]
[1720863362794,3.125681,3160.7,3159.8,2.21531]
[1720863363118,2.7488021,3160.6,3159.8,2.21531]
[1720863363916,2.7488021,3160.6,3159.6,2.21545]
[1720863364124,2.7488021,3160.6,3159.6,4.43086]
[1720863364308,2.7488021,3160.6,3159.7,2.21539]
[1720863364504,2.21491,3160.4,3159.0,6.91330018]
[1720863364704,2.2151,3160.2,3159.3,2.21566]
[1720863364905,0.07912705,3160.1,3159.3,2.21566]
[1720863365512,2.29426705,3160.1,3159.3,2.21566]
[1720863366040,2.2152,3160.0,3159.2,2.21575]
[1720863366335,2.2152,3160.0,3159.0,6.91330018]
[1720863366336,2.4804,3159.8,3159.0,9.12915018]
[1720863366501,0.07913497,3159.7,3159.0,9.12915018]
[1720863366682,0.07913497,3159.7,3158.7,5.3315517]
[1720863367024,5.17320936,3159.8,3158.9,2.2159]
[1720863367195,5.17320936,3159.8,3158.8,3.0]
[1720863367393,5.17320936,3159.8,3158.7,2.3315517]
[1720863367629,0.0766939,3159.7,3159.0,2.21589]
[1720863367807,0.0766939,3159.7,3159.2,2.21571]
[1720863368485,2.2152,3160.0,3159.2,2.21571]
[1720863368693,0.07670605,3159.9,3159.2,2.21571]
[1720863369137,2.21506,3160.2,3159.2,2.21571]
[1720863369439,2.29192378,3160.1,3159.4,2.21558]
[1720863369836,2.2152,3160.0,3159.2,2.21571]
[1720863370244,0.07664983,3159.9,3159.2,2.21571]
[1720863371442,0.07664983,3159.9,3159.0,2.21584]
[1720863371443,2.29451322,3159.8,3159.0,2.21584]
[1720863371623,0.45864331,3159.7,3159.0,2.21584]
[1720863371820,0.53515776,3159.7,3159.0,2.21584]
[1720863372819,2.82969622,3159.7,3159.0,2.21584]
[1720863373168,2.21561,3159.4,3158.7,2.3315617]
[1720863373462,0.51958157,3159.3,3158.7,2.3315617]
[1720863373644,2.21587,3159.1,3158.7,0.1154617]
[1720863374146,0.07643245,3159.0,3158.7,0.1154617]
[1720863375817,2.21596,3158.9,3158.7,0.1154617]
[1720863376355,2.29222404,3158.8,3158.7,0.1154617]
[1720863377226,2.37138495,3158.8,3158.7,0.1154617]
[1720863377413,5.31051945,3158.8,3158.7,0.1154617]
[1720863378332,12.44354981,3158.8,3158.7,0.1154617]
[1720863380012,14.65957981,3158.8,3158.7,0.1154617]
[1720863383159,16.87560981,3158.8,3158.7,1.7e-06]
[1720863383354,2.21685,3157.7,3157.0,6.91330018]
[1720863383656,0.07296172,3157.6,3157.0,6.91330018]
[1720863383961,0.07296172,3157.6,3157.1,2.21722]
[1720863384264,2.21691,3157.6,3157.0,6.91330018]
[1720863384449,0.07303171,3157.5,3157.0,6.91330018]
[1720863384847,2.28997171,3157.5,3156.7,9.13078018]
[1720863385158,2.28997171,3157.5,3156.8,2.21742]
[1720863385159,2.21694,3157.5,3156.8,2.21742]
[1720863385456,0.07297552,3157.4,3156.7,9.13078018]
[1720863385823,2.21694,3157.5,3156.7,9.13078018]
[1720863386229,2.21694,3157.5,3156.7,6.91330018]
[1720863386427,2.21708,3157.3,3156.7,6.91330018]
[1720863386791,2.21731,3157.0,3156.7,6.91330018]
[1720863387134,0.07263208,3156.9,3156.7,6.91330018]
[1720863387373,2.29000208,3156.9,3156.7,6.91330018]
[1720863389587,2.29000208,3156.9,3156.2,2.21783]
[1720863389952,2.21743,3156.8,3156.2,2.21783]
[1720863390137,0.07250394,3156.7,3156.0,9.13125018]
[1720863390466,2.21743,3156.8,3156.0,9.13128018]
[1720863390760,0.07245756,3156.7,3156.0,9.13128018]
[1720863390967,0.07245756,3156.7,3156.1,2.21791]
[1720863391474,2.28996756,3156.7,3155.9,2.21805]
[1720863391775,2.28996756,3156.7,3156.0,2.21798]
[1720863391928,0.07245756,3156.7,3156.0,2.21797]
[1720863392136,2.21733,3157.0,3156.0,2.21797]
[1720863392448,2.28997998,3156.9,3156.1,2.21787]
[1720863392643,0.07256998,3156.9,3156.2,2.21785]
[1720863392849,0.07256998,3156.9,3156.6,2.21756]
[1720863393186,2.21703,3157.4,3156.6,2.21756]
[1720863393474,2.2872598,3157.3,3156.6,2.21756]
[1720863394479,0.0701798,3157.3,3156.6,2.21756]
[1720863394696,0.0701798,3157.3,3157.0,6.91330018]
[1720863394896,0.4587345,3158.8,3157.2,2.21715]
[1720863394897,2.2164,3158.3,3157.2,2.21715]
[1720863395196,2.27955759,3158.2,3157.3,2.21704]
[1720863395395,2.27955759,3158.2,3157.2,2.21715]
[1720863395396,2.21652,3158.1,3157.2,2.21715]
[1720863395597,2.21652,3158.1,3157.0,9.13059018]
[1720863395598,2.21667,3157.9,3157.0,9.13059018]
[1720863395805,0.0791809,3157.8,3157.0,6.91330018]
[1720863395954,2.21696,3157.5,3157.0,6.91330018]
[1720863396159,0.06297262,3157.4,3157.0,6.91330018]
[1720863396384,0.06297262,3157.4,3156.6,2.21755]
[1720863396583,2.2171,3157.3,3156.4,9.13099018]
[1720863396786,0.06295577,3157.2,3156.4,9.13099018]
[1720863396991,0.06295577,3157.2,3156.5,2.21764]
[1720863397787,0.06295577,3157.2,3156.6,2.21756]
[1720863398157,0.06295577,3157.2,3156.5,2.21764]
[1720863398364,0.06295577,3157.2,3156.6,2.21756]
[1720863398566,0.06295577,3157.2,3156.7,2.21747]
[1720863398879,2.21696,3157.5,3156.8,2.21743]
[1720863399113,0.743378,3157.5,3156.8,2.21743]
[1720863399417,0.0630642,3157.4,3156.9,2.21736]
[1720863400320,2.21687,3157.6,3156.9,2.21736]
[1720863400632,0.0629772,3157.5,3156.9,2.21736]
[1720863400836,2.80795192,3157.5,3156.7,2.21749]
[1720863401024,2.21702,3157.4,3156.7,2.21749]
[1720863401395,0.06288802,3157.3,3156.7,2.21749]
[1720863402394,0.06288802,3157.3,3156.6,2.21757]
[1720863402635,0.34367729,3157.3,3156.6,2.21757]
[1720863403495,2.56080729,3157.3,3156.6,2.21757]
[1720863404147,0.07919404,3157.2,3156.6,2.21757]
[1720863404309,0.062822,3157.1,3156.4,9.13100018]
[1720863404944,2.21735,3157.0,3156.4,6.91330018]
[1720863405097,0.06273279,3156.9,3156.4,6.91330018]
[1720863405300,2.28013279,3156.9,3156.4,6.91330018]
[1720863405996,2.21748,3156.8,3156.4,6.91330018]
[1720863406294,0.06258926,3156.7,3156.4,6.91330018]
[1720863406495,2.2175,3156.7,3156.4,6.91330018]
[1720863406696,0.06250985,3156.6,3156.4,6.91330018]
[1720863407008,2.21731,3157.0,3156.4,6.91330018]
[1720863407211,0.06245293,3156.5,3156.4,6.91330018]
[1720863407414,2.28,3157.5,3156.4,6.91330018]
[1720863407653,2.21692,3157.6,3156.8,2.19242]
[1720863407822,0.06068518,3157.4,3157.1,6.91330018]
[1720863408018,0.06071818,3157.5,3156.4,6.91330018]
[1720863408224,4.49688,3157.6,3156.5,2.21759]
[1720863408225,2.21706,3157.4,3156.5,2.21759]
[1720863408434,2.27570189,3157.4,3156.5,2.21759]
[1720863408757,2.21708,3157.3,3156.5,2.21759]
[1720863408961,2.21726,3157.1,3156.4,6.91330018]
[1720863409303,0.05639454,3157.0,3156.4,9.13099018]
[1720863409632,4.49694,3157.6,3156.8,2.21742]
[1720863409955,5.72325704,3157.5,3156.8,2.21742]
[1720863410443,3.50630704,3157.5,3156.8,2.21742]
[1720863410750,0.50630704,3157.5,3156.8,2.21742]
[1720863410927,2.72329704,3157.5,3156.6,2.21756]
[1720863411111,0.50630704,3157.5,3156.7,2.2175]
[1720863411315,0.05661304,3157.5,3156.9,2.21731]
[1720863412002,0.05661304,3157.5,3156.8,2.21742]
[1720863412003,2.27357304,3157.5,3156.8,2.21742]
[1720863412250,5.27357304,3157.5,3156.8,2.21742]
[1720863412547,2.27357304,3157.5,3156.8,2.21742]
[1720863412749,2.21728,3157.1,3156.4,2.21771]
[1720863412963,0.0564418,3157.0,3156.6,2.21752]
[1720863413122,4.49703,3157.4,3156.6,2.21752]
[1720863413459,4.49703,3157.4,3156.4,2.21771]
[1720863413460,2.80253907,3157.3,3156.4,2.21771]
[1720863413665,0.07920068,3157.2,3156.4,2.21771]
[1720863414036,0.05644909,3157.1,3156.4,2.21771]
[1720863414244,2.27368909,3157.1,3156.4,2.21771]
[1720863414715,2.2173,3157.0,3156.2,2.21785]
[1720863414922,2.27379983,3156.9,3156.1,6.91330018]
[1720863415111,2.27379983,3156.9,3156.1,9.13117018]
[1720863415710,2.21743,3156.8,3156.1,9.13117018]
[1720863416061,0.05633067,3156.7,3156.1,9.13117018]
[1720863416348,0.05633067,3156.7,3155.8,2.21808]
[1720863416349,4.49759,3156.6,3155.8,2.21808]
[1720863416593,0.1727,3156.1,3155.7,2.21817]
[1720863416862,0.05602994,3156.0,3155.8,2.21808]
[1720863417360,0.05599691,3155.9,3155.8,2.21808]
[1720863417648,4.49759,3156.6,3155.8,2.21808]
[1720863417835,0.449759,3156.5,3155.8,2.21808]
[1720863418037,0.50589794,3156.5,3155.8,2.21808]
[1720863418745,0.05613894,3156.5,3155.9,2.21804]
[1720863420395,0.05613894,3156.5,3156.0,0.06336995]
[1720863420573,0.05613894,3156.5,3155.7,2.21817]
[1720863420574,2.28,3157.0,3156.4,2.21771]
[1720863420854,0.0562042,3156.9,3156.5,2.21763]
[1720863422566,0.449703,3157.3,3156.5,2.21763]
[1720863422731,2.54016427,3157.2,3156.5,2.21763]
[1720863422922,2.54016427,3157.2,3156.3,2.21778]
[1720863423128,0.32301427,3157.2,3156.5,2.21759]
[1720863423356,0.32301427,3157.2,3156.6,2.21756]
[1720863423675,0.32301427,3157.2,3156.0,0.06335862]
[1720863423676,0.05633997,3157.2,3156.7,2.21746]
[1720863423818,0.05633997,3157.2,3156.9,2.21736]
[1720863424017,2.2169,3157.6,3156.9,2.21736]
[1720863424253,0.05654052,3157.5,3156.9,2.21736]
[1720863424554,0.22734405,3157.4,3156.9,2.21736]
[1720863424856,0.05647452,3157.3,3156.8,2.21742]
[1720863425635,0.05647452,3157.3,3156.6,2.21752]
[1720863425819,0.05647452,3157.3,3156.7,2.21749]
[1720863426044,2.27355452,3157.3,3156.5,2.21761]
[1720863426228,4.82444986,3157.2,3156.4,2.21771]
[1720863426763,0.05635029,3157.1,3156.4,2.21771]
[1720863426958,2.27363029,3157.1,3156.3,2.21777]
[1720863427951,2.2173,3157.0,3156.3,2.21777]
[1720863428152,0.50528797,3156.9,3156.3,2.21777]
[1720863428659,2.72264797,3156.9,3156.1,4.43575]
[1720863428957,2.72264797,3156.9,3156.2,2.21785]
[1720863429357,0.05619494,3156.9,3156.3,2.21776]
[1720863429563,2.21728,3157.1,3156.3,2.21776]
[1720863429924,0.0564128,3157.0,3156.3,2.21776]
[1720863430463,2.2737028,3157.0,3156.3,2.21776]
[1720863430621,0.44909828,3156.9,3156.3,2.21776]
[1720863430962,0.0563004,3156.8,3156.5,2.21762]
[1720863431125,2.60728986,3157.2,3156.6,2.21757]
[1720863431322,2.27365944,3157.1,3156.4,2.2177]
[1720863432152,4.49094944,3157.1,3156.2,2.2178]
[1720863432350,2.92712393,3157.0,3156.2,2.2178]
[1720863432657,0.05624857,3156.9,3156.2,2.2178]
[1720863433027,0.05624857,3156.9,3156.3,2.21777]
[1720863433229,0.05624857,3156.9,3156.4,2.2177]
[1720863434025,2.21699,3157.5,3156.8,2.21742]
[1720863434226,0.51390997,3157.4,3156.8,2.21742]
[1720863435475,0.51390997,3157.4,3156.8,4.4348]
[1720863436480,3.0,3157.8,3156.1,0.158]
[1720863436481,2.3572,3158.5,3157.4,2.21701]
[1720863436697,2.21595,3159.0,3157.4,2.4341]
[1720863436698,2.3572,3159.0,3157.4,2.4341]
[1720863436980,2.3572,3159.0,3158.3,2.21636]
[1720863437185,2.3572,3159.0,3158.1,2.21651]
[1720863438161,2.3572,3159.0,3158.3,2.21631]
[1720863438363,2.3572,3159.0,3158.1,2.21651]
[1720863438691,2.21568,3159.3,3158.4,2.21628]
[1720863439248,2.21556,3159.5,3158.5,2.21624]
[1720863439359,2.21556,3159.5,3157.8,0.06331996]
[1720863439360,2.3572,3159.6,3157.8,0.06331996]
[1720863439565,4.57267,3159.6,3158.7,2.21609]
[1720863439996,3.0,3159.5,3158.7,2.21609]
[1720863441973,2.3572,3159.6,3159.0,2.21583]
[1720863442371,2.3572,3159.6,3159.1,2.2158]
[1720863443197,2.3572,3160.1,3159.0,2.21583]
[1720863443503,2.3572,3160.1,3159.4,2.21558]
[1720863443660,2.3572,3160.1,3158.4,2.21624]
[1720863443661,2.814418,3160.1,3159.5,2.21553]
[1720863444174,2.814418,3160.1,3159.7,2.21539]
[1720863444175,0.04253573,3160.0,3159.7,2.21539]
[1720863444408,0.04253573,3160.0,3159.8,2.21532]
[1720863444623,2.3572,3160.6,3159.8,2.21532]
[1720863444923,2.3572,3160.6,3160.1,2.21511]
[1720863445298,4.59192895,3161.1,3160.1,2.21511]
[1720863445530,0.4591929,3161.0,3160.1,2.21511]
[1720863445731,2.6736829,3161.0,3160.1,2.21511]
[1720863446757,5.21456,3160.9,3160.1,2.21511]
[1720863446965,7.42917,3160.9,3159.9,2.21525]
[1720863447128,5.21456,3160.9,3160.0,2.21515]
[1720863447327,0.78883629,3160.8,3160.0,2.21515]
[1720863447524,3.00346629,3160.8,3160.0,2.21515]
[1720863449811,0.78883629,3160.8,3160.2,2.21504]
[1720863450241,0.78883629,3160.8,3160.0,2.21515]
[1720863450424,0.4591929,3161.0,3160.3,2.21497]
[1720863450749,2.6736829,3161.0,3160.1,2.21508]
[1720863451048,0.07910487,3160.9,3160.4,2.2149]
[1720863451344,2.29364156,3161.0,3160.2,2.215]
[1720863451715,2.21456,3160.9,3160.2,2.215]
[1720863452513,0.07910475,3160.8,3160.0,0.158]
[1720863452710,0.07911248,3160.7,3160.0,0.158]
[1720863452962,0.22937425,3160.6,3160.0,0.158]
[1720863453162,2.21492,3160.4,3160.0,0.158]
[1720863453311,2.2984,3160.3,3160.0,0.158]
[1720863454554,2.21505,3160.2,3160.0,0.158]
[1720863455142,2.2984,3160.3,3160.0,0.158]
[1720863455319,0.451336,3160.2,3160.0,0.158]
[1720863456420,0.53045584,3160.2,3160.0,0.158]
[1720863457043,2.74550584,3160.2,3160.0,0.158]
[1720863457738,0.04115402,3160.1,3160.0,0.158]
[1720863458160,2.25626402,3160.1,3160.0,0.158]
[1720863458367,2.98628101,3160.1,3160.0,0.158]
[1720863461132,5.20139101,3160.1,3160.0,0.158]
[1720863470081,5.20139101,3160.1,3160.0,0.108]
[1720863471860,7.41650101,3160.1,3160.0,0.108]
[1720863474055,10.41650101,3160.1,3160.0,0.108]
[1720863474968,12.68610101,3160.1,3160.0,0.108]
[1720863475660,13.23610101,3160.1,3160.0,0.108]
[1720863476859,15.45121101,3160.1,3160.0,0.108]
[1720863477895,2.21597,3158.9,3158.2,2.3218]
[1720863478257,0.0404475,3158.8,3158.2,2.3218]
[1720863478897,2.2564775,3158.8,3158.2,2.3218]
[1720863479554,2.2564775,3158.8,3158.0,2.21655]
[1720863480373,0.0404475,3158.8,3158.1,2.3218]
[1720863480576,0.0404475,3158.8,3158.7,6.754]
[1720863480791,2.21526,3159.9,3159.1,2.21581]
[1720863480979,9.6454,3159.7,3158.9,2.21595]
[1720863481355,0.03944701,3159.6,3158.7,2.3218]
[1720863481615,0.03944701,3159.6,3157.7,0.38398426]
[1720863481616,2.21576,3159.2,3158.2,4.53823]
[1720863481817,2.658903,3159.2,3158.4,2.2163]
[1720863482118,2.25519777,3159.1,3158.2,4.53823]
[1720863482500,2.21591,3159.0,3158.2,2.3218]
[1720863482900,2.25525061,3158.9,3158.2,2.3218]
[1720863483098,2.21608,3158.8,3158.0,2.21658]
[1720863483307,0.44713306,3158.7,3158.0,2.21658]
[1720863483496,0.48634818,3158.7,3158.0,2.21658]
[1720863485838,0.03921512,3158.7,3158.0,2.21658]
[1720863485986,0.11005968,3341.9,3158.1,2.21651]
[1720863485987,2.21569,3159.3,3158.1,2.21651]
[1720863486329,0.03946981,3159.2,3158.1,2.21651]
[1720863486726,3.07915569,3159.5,3158.1,2.21651]
[1720863486878,0.03943685,3159.1,3158.1,2.21651]
[1720863487081,0.75642557,3159.4,3158.1,2.21651]
[1720863487281,0.03940388,3159.0,3158.4,2.21629]
[1720863487475,2.21575,3159.2,3158.4,2.21629]
[1720863487710,0.0393307,3158.9,3158.2,2.21639]
[1720863488021,0.03928669,3158.8,3158.2,2.21642]
[1720863488231,0.03928669,3158.8,3158.3,2.21633]
[1720863488443,2.2157,3159.3,3158.5,2.21621]
[1720863488608,0.03925249,3158.7,3158.1,11.34626018]
[1720863488808,2.21589,3159.0,3158.2,2.21639]
[1720863489008,0.03919637,3158.6,3158.2,2.21639]
[1720863489223,0.221589,3158.9,3158.1,9.12977018]
[1720863489465,2.21605,3158.8,3158.1,6.91330018]
[1720863489639,2.25530985,3158.8,3158.1,6.91330018]
[1720863490298,0.03925985,3158.8,3158.1,9.12978018]
[1720863491693,2.25528985,3158.8,3158.1,9.12978018]
[1720863492439,2.25528985,3158.8,3158.1,8.85478018]
[1720863493001,2.25528985,3158.8,3158.1,2.21648]
[1720863493197,2.72456674,3158.8,3158.1,2.21648]
[1720863496597,2.21625,3158.5,3157.8,6.63830018]
[1720863496797,0.03895791,3158.4,3157.8,6.63830018]
[1720863499097,2.25526791,3158.4,3157.8,6.63830018]
[1720863499295,2.7024117,3158.4,3157.8,6.63830018]
[1720863504763,2.21638,3158.3,3157.8,6.63830018]
[1720863505268,0.03873068,3158.2,3157.8,6.63830018]
[1720863505436,2.29554173,3158.3,3157.8,6.63830018]
[1720863505646,0.03869647,3158.1,3157.8,6.63830018]
[1720863505963,2.21645,3158.2,3157.8,6.63830018]
[1720863506148,2.25520714,3158.0,3157.8,6.63830018]
[1720863506467,0.03852796,3157.9,3157.8,6.63830018]
[1720863507841,0.03852796,3157.9,3157.3,11.07238018]
[1720863508174,2.21659,3158.0,3157.3,8.85533018]
[1720863508344,2.659894,3158.0,3157.3,8.85533018]
[1720863509253,0.443304,3158.0,3157.4,2.21701]
[1720863509459,2.2164,3158.3,3157.6,2.21686]
[1720863509643,0.03870468,3157.9,3157.6,2.21686]
[1720863509843,2.21634,3158.4,3157.6,2.21686]
[1720863510032,0.03881467,3158.3,3157.6,2.21686]
[1720863510227,2.25519467,3158.3,3157.6,2.21686]
[1720863513432,2.25519467,3158.3,3157.5,2.21687]
[1720863513876,2.2166,3158.0,3157.3,6.63830018]
[1720863514176,2.21682,3157.7,3157.3,6.63830018]
[1720863514354,0.221682,3157.6,3157.3,6.63830018]
[1720863514593,2.21682,3157.7,3157.3,6.63830018]
[1720863514769,0.0383654,3157.5,3157.3,6.63830018]
[1720863515074,0.03835557,3157.4,3157.3,6.63830018]
[1720863515371,2.21682,3157.7,3157.3,6.63830018]
[1720863515877,0.03844476,3157.6,3157.3,6.63830018]
[1720863516628,0.26397124,3157.6,3157.3,6.63830018]
[1720863518459,2.48086124,3157.6,3157.3,6.63830018]